[Event "DMP-III LIGA Senior PK 2020"]
[Site "Bystre"]
[Date "2020.07.09"]
[Round "2.29"]
[White "Karas, Kacper"]
[Black "Materniak, Aleksander"]
[Result "1/2-1/2"]
[ECO "A20"]
[WhiteElo "1150"]
[BlackElo "1660"]
[Annotator "NA"]
[PlyCount "129"]
[EventDate "2020.07.05"]
[EventType "team-tourn"]
[EventCountry "POL"]
[SourceTitle "playchess.com"]
[Source "ChessBase"]
[SourceQuality "1"]
[TimeControl "5400+30"]

1. c4 {[%emt 0:00:00]} e5 {[%emt 0:00:00]} 2. g3 {[%emt 0:00:00]} Nf6 {[%emt 0:00:19]} 3. Bg2 {[%emt 0:00:00]} Bc5 {[%emt 0:01:27]} 4. Nc3 {[%emt 0:00:12]} O-O {[%emt 0:01:48]} 5. e3 {[%emt 0:00:59]} c6 {[%emt 0:02:37]} 6. Nge2 {[%emt 0:00:42]} d5 {[%emt 0:01:32]} 7. cxd5 {[%emt 0:00:08]} cxd5 {[%emt 0:00:26]} 8. d4 {[%emt 0:00:11]} exd4 {[%emt 0:01:39]} 9. Nxd4 {[%emt 0:00:44]} Nc6 {[%emt 0:01:30]} 10. Nxc6 {[%emt 0:10:03]} bxc6 {[%emt 0:00:17]} 11. Qa4 {[%emt 0:05:01]} Qb6 {[%emt 0:06:07]} 12. O-O {[%emt 0:01:10]} Re8 {[%emt 0:03:26]} 13. a3 {[%emt 0:01:13]} Bf5 {[%emt 0:04:37]} 14. Qf4 {[%emt 0:12:53]} Bc2 {[%emt 0:07:51]} 15. Na4 {[%emt 0:07:50]} Bxa4 {[%emt 0:01:39]} 16. Qxa4 {[%emt 0:01:56]} Ne4 {[%emt 0:02:44]} 17. b4 {[%emt 0:02:52]} Bd6 {[%emt 0:02:19]} 18. Bb2 {[%emt 0:03:24]} a5 {[%emt 0:11:28]} 19. Bd4 {[%emt 0:07:42]} Qc7 {[%emt 0:06:17]} 20. Rfc1 {[%emt 0:02:39]} Rec8 {[%emt 0:08:04]} 21. Bxe4 {[%emt 0:04:53]} axb4 {[%emt 0:03:52]} 22. Bxh7+ {[%emt 0:02:41]} Kxh7 {[%emt 0:00:28]} 23. Qc2+ {[%emt 0:02:40]} Kg8 {[%emt 0:00:15]} 24. axb4 {[%emt 0:01:23]} Rxa1 {[%emt 0:00:27]} 25. Rxa1 {[%emt 0:01:20]} Bxb4 {[%emt 0:04:04]} 26. Ra7 {[%emt 0:00:50]} Qd6 {[%emt 0:00:51]} 27. Qf5 {[%emt 0:02:12]} Rf8 {[%emt 0:04:32]} 28. Qg5 {[%emt 0:03:48]} Qh6 {[%emt 0:01:53]} 29. Qxh6 {[%emt 0:05:41]} gxh6 {[%emt 0:00:08]} 30. Rc7 {[%emt 0:00:44]} Re8 {[%emt 0:05:14]} 31. Rxc6 {[%emt 0:01:35]} Re6 {[%emt 0:00:12]} 32. Rc8+ {[%emt 0:04:28]} Kh7 {[%emt 0:00:23]} 33. Rh8+ {[%emt 0:00:42]} Kg6 {[%emt 0:00:03]} 34. Rg8+ {[%emt 0:00:15]} Kf5 {[%emt 0:03:20]} 35. f3 {[%emt 0:03:47]} Rg6 {[%emt 0:03:18]} 36. Re8 {[%emt 0:01:21]} Re6 {[%emt 0:00:41]} 37. Rg8 {[%emt 0:01:35]} Rg6 {[%emt 0:00:10]} 38. g4+ {[%emt 0:01:04]} Ke6 {[%emt 0:03:30]} 39. Rb8 {[%emt 0:02:36]} Bd6 {[%emt 0:00:37]} 40. Rb6 {[%emt 0:00:09]} Kd7 {[%emt 0:01:06]} 41. h4 {[%emt 0:00:36]} f5 {[%emt 0:02:29]} 42. Be5 {[%emt 0:02:08]} fxg4 {[%emt 0:03:48]} 43. Rxd6+ {[%emt 0:00:17]} Rxd6 {[%emt 0:00:04]} 44. Bxd6 {[%emt 0:00:12]} Kxd6 {[%emt 0:00:02]} 45. fxg4 {[%emt 0:00:05]} Ke5 {[%emt 0:02:05]} 46. Kf2 {[%emt 0:01:33]} Ke4 {[%emt 0:01:24]} 47. Ke2 {[%emt 0:00:15]} d4 {[%emt 0:00:59]} 48. exd4 {[%emt 0:00:09]} Kxd4 {[%emt 0:00:22]} 49. Kf3 {[%emt 0:00:36]} Ke5 {[%emt 0:00:58]} 50. Ke3 {[%emt 0:00:26]} Ke6 {[%emt 0:00:36]} 51. Ke4 {[%emt 0:01:04]} Kf7 {[%emt 0:00:54]} 52. Kf5 {[%emt 0:01:40]} Kg7 {[%emt 0:00:12]} 53. Ke6 {[%emt 0:01:35]} Kg6 {[%emt 0:00:21]} 54. Ke5 {[%emt 0:00:30]} Kg7 {[%emt 0:00:29]} 55. g5 {[%emt 0:00:56]} hxg5 {[%emt 0:00:39]} 56. hxg5 {[%emt 0:00:07]} Kg6 {[%emt 0:00:25]} 57. Kf4 {[%emt 0:00:10]} Kg7 {[%emt 0:00:27]} 58. Kf5 {[%emt 0:01:49]} Kf7 {[%emt 0:00:23]} 59. g6+ {[%emt 0:00:14]} Kg7 {[%emt 0:00:30]} 60. Kg5 {[%emt 0:00:11]} Kg8 {[%emt 0:00:30]} 61. Kf4 {[%emt 0:01:50]} Kg7 {[%emt 0:00:28]} 62. Kf5 {[%emt 0:00:09]} Kg8 {[%emt 0:00:12]} 63. Kf6 {[%emt 0:00:53]} Kf8 {[%emt 0:00:14]} 64. Ke6 {[%emt 0:00:13]} Kg7 {[%emt 0:00:33]} 65. Kf5 {[%emt 0:00:04]} 1/2-1/2

[Event "DMP-III LIGA Senior PK 2020"]
[Site "Bystre"]
[Date "2020.07.09"]
[Round "2.30"]
[White "Tarsa, Joanna"]
[Black "Uliasz, Katarzyna"]
[Result "0-1"]
[ECO "B70"]
[WhiteElo "1574"]
[BlackElo "1386"]
[Annotator "NA"]
[PlyCount "78"]
[EventDate "2020.07.05"]
[EventType "team-tourn"]
[EventCountry "POL"]
[SourceTitle "playchess.com"]
[Source "ChessBase"]
[SourceQuality "1"]
[TimeControl "5400+30"]

1. e4 {[%emt 0:00:00]} c5 {[%emt 0:00:00]} 2. Nf3 {[%emt 0:00:00]} d6 {[%emt 0:00:00]} 3. d4 {[%emt 0:00:00]} cxd4 {[%emt 0:00:00]} 4. Nxd4 {[%emt 0:00:00]} Nf6 {[%emt 0:00:00]} 5. Nc3 {[%emt 0:00:07]} g6 {[%emt 0:00:02]} 6. Bc4 {[%emt 0:00:10]} Bg7 {[%emt 0:00:06]} 7. Be3 {[%emt 0:00:04]} O-O {[%emt 0:00:09]} 8. O-O {[%emt 0:00:11]} Nc6 {[%emt 0:00:21]} 9. Bb3 {[%emt 0:03:51]} Ng4 {[%emt 0:07:45]} 10. Nxc6 {[%emt 0:03:50]} bxc6 {[%emt 0:00:09]} 11. Bd2 {[%emt 0:00:57]} Qc7 {[%emt 0:10:53]} 12. h3 {[%emt 0:05:45]} Nf6 {[%emt 0:01:05]} 13. Rb1 {[%emt 0:03:27]} Rd8 {[%emt 0:05:15]} 14. Qe2 {[%emt 0:13:38]} e5 {[%emt 0:11:48]} 15. Rfe1 {[%emt 0:10:38]} Nh5 {[%emt 0:05:45]} 16. Qf3 {[%emt 0:06:50]} Rd7 {[%emt 0:11:04]} 17. Bg5 {[%emt 0:06:05]} h6 {[%emt 0:01:23]} 18. Bd2 {[%emt 0:00:20]} Kh7 {[%emt 0:03:10]} 19. Ne2 {[%emt 0:08:07]} Bb7 {[%emt 0:01:55]} 20. c4 {[%emt 0:04:08]} Rf8 {[%emt 0:00:46]} 21. g4 {[%emt 0:04:31]} Nf6 {[%emt 0:00:16]} 22. Ng3 {[%emt 0:00:49]} d5 {[%emt 0:04:18]} 23. cxd5 {[%emt 0:08:03]} cxd5 {[%emt 0:00:10]} 24. exd5 {[%emt 0:01:47]} Nxd5 {[%emt 0:00:49]} 25. Bxd5 {[%emt 0:00:48]} Bxd5 {[%emt 0:00:12]} 26. Qc3 {[%emt 0:00:18]} Bxa2 {[%emt 0:09:38]} 27. Ra1 {[%emt 0:01:07]} Bd5 {[%emt 0:03:43]} 28. Ra5 {[%emt 0:01:33]} Qb7 {[%emt 0:01:44]} 29. Qb4 {[%emt 0:02:00]} Qa8 {[%emt 0:01:40]} 30. Bc3 {[%emt 0:04:19]} Re8 {[%emt 0:02:53]} 31. Qa4 {[%emt 0:03:48]} Ree7 {[%emt 0:00:47]} 32. Bxe5 {[%emt 0:01:08]} Qe8 {[%emt 0:04:53]} 33. f4 {[%emt 0:02:32]} f6 {[%emt 0:00:15]} 34. Rd1 {[%emt 0:00:19]} Bc6 {[%emt 0:02:52]} 35. Qc2 {[%emt 0:00:11]} Rxd1+ {[%emt 0:00:16]} 36. Qxd1 {[%emt 0:00:03]} fxe5 {[%emt 0:00:15]} 37. fxe5 {[%emt 0:00:42]} Rxe5 {[%emt 0:00:28]} 38. Rxe5 {[%emt 0:00:14]} Qxe5 {[%emt 0:00:13]} 39. Qb3 {[%emt 0:01:46]} Qe1+ {[%emt 0:01:31]} 0-1

[Event "DMP-III LIGA Senior PK 2020"]
[Site "Bystre"]
[Date "2020.07.09"]
[Round "3.1"]
[White "Marut, Leszek"]
[Black "Stefanski, Robert"]
[Result "1/2-1/2"]
[ECO "D05"]
[WhiteElo "1863"]
[BlackElo "1649"]
[Annotator "NA RC"]
[PlyCount "39"]
[EventDate "2020.07.05"]
[EventType "team-tourn"]
[EventCountry "POL"]
[SourceTitle "playchess.com"]
[Source "ChessBase"]
[SourceQuality "1"]
[TimeControl "5400+30"]

1. d4 {[%emt 0:00:00]} d5 {[%emt 0:01:13]} 2. Nf3 {[%emt 0:00:00]} e6 {[%emt 0:00:23]} 3. e3 {[%emt 0:03:52]} Nf6 {[%emt 0:00:13]} 4. Bd3 {[%emt 0:00:49]} c5 {[%emt 0:00:15]} 5. c3 {[%emt 0:00:07]} Nc6 {[%emt 0:00:55]} 6. Nbd2 {[%emt 0:00:31]} Bd6 {[%emt 0:02:06]} 7. O-O {[%emt 0:00:15]} O-O {[%emt 0:02:26]} 8. Qe2 {[%emt 0:00:34]} e5 {[%emt 0:12:05]} 9. dxc5 {[%emt 0:03:18]} Bxc5 {[%emt 0:00:14]} 10. e4 {[%emt 0:00:13]} d4 {[%emt 0:11:16]} 11. Nb3 {[%emt 0:02:39]} Bb6 {[%emt 0:01:00]} 12. cxd4 {[%emt 0:10:28]} Nxd4 {[%emt 0:01:28]} 13. Nbxd4 {[%emt 0:02:11]} Bxd4 {[%emt 0:00:11]} 14. Nxd4 {[%emt 0:02:52]} Qxd4 {[%emt 0:05:57]} 15. Be3 {[%emt 0:02:42]} Qd6 {[%emt 0:03:28]} 16. Rac1 {[%emt 0:03:04]} b6 {[%emt 0:00:48]} 17. Rfd1 {[%emt 0:01:03]} Bb7 {[%emt 0:06:06]} 18. f3 {[%emt 0:02:19]} Rac8 {[%emt 0:07:36]} 19. Bc4 {[%emt 0:04:27]} Qe7 {[%emt 0:01:34]} 20. Ra1 1/2-1/2

[Event "DMP-III LIGA Senior PK 2020"]
[Site "Bystre"]
[Date "2020.07.09"]
[Round "3.2"]
[White "Socha, Kamil"]
[Black "Dobrzanski, Krzysztof"]
[Result "1/2-1/2"]
[ECO "D63"]
[WhiteElo "1817"]
[BlackElo "1722"]
[Annotator "NA RC"]
[PlyCount "64"]
[EventDate "2020.07.05"]
[EventType "team-tourn"]
[EventCountry "POL"]
[SourceTitle "playchess.com"]
[Source "ChessBase"]
[SourceQuality "1"]
[TimeControl "5400+30"]

1. d4 {[%emt 0:01:41]} d5 {[%emt 0:00:00]} 2. c4 {[%emt 0:00:37]} Nf6 {[%emt 0:00:02]} 3. Nf3 {[%emt 0:00:58]} e6 {[%emt 0:01:14]} 4. Nc3 {[%emt 0:00:11]} c6 {[%emt 0:00:21]} 5. Bg5 {[%emt 0:00:16]} Nbd7 {[%emt 0:01:23]} 6. e3 {[%emt 0:00:23]} Be7 {[%emt 0:03:24]} 7. Rc1 {[%emt 0:00:11]} O-O {[%emt 0:02:33]} 8. a3 {[%emt 0:00:17]} Re8 {[%emt 0:09:09]} 9. h3 {[%emt 0:01:16] D63: Queen's Gambit Declined: Classical: 7 Rc1.} a6 {[%emt 0:07:05]} 10. c5 {[%emt 0:01:46] [#]} Qc7 $146 {[%emt 0:08:12]} ({Predecessor:} 10... Nh5 11. Bxe7 Qxe7 12. Be2 Nhf6 13. O-O e5 14. Na4 e4 15. Nd2 Rb8 16. Qb3 Nf8 {½-½ (78) Letelier Martner,R-Rossetto,H Mar del Plata 1951}) 11. Bf4 {[%emt 0:00:41]} Qd8 {[%emt 0:01:20]} 12. Bd3 {[%emt 0:00:29]} Nh5 {[%emt 0:00:38]} 13. Bh2 {[%emt 0:01:15]} g6 {[%emt 0:09:42]} 14. g4 {[%emt 0:05:34]} Ng7 {[%emt 0:01:27]} 15. Bg3 {[%emt 0:01:31]} f6 {[%emt 0:00:56]} 16. h4 {[%emt 0:01:20]} e5 {[%emt 0:01:07]} 17. dxe5 {[%emt 0:01:34]} Nxc5 {[%emt 0:02:00]} 18. exf6 {[%emt 0:23:20]} Nxd3+ {[%emt 0:02:19]} 19. Qxd3 {[%emt 0:00:12]} Bxf6 {[%emt 0:00:19]} 20. g5 {[%emt 0:03:46]} Bf5 {[%emt 0:02:05]} 21. Qe2 {[%emt 0:05:29]} Be7 {[%emt 0:00:58]} 22. Nd4 {[%emt 0:02:47]} Qd7 {[%emt 0:03:44]} 23. Nxf5 {[%emt 0:03:56]} (23. Na4 $142 Qd8 24. O-O) 23... Qxf5 {[%emt 0:00:28]} 24. Qc2 {[%emt 0:01:23]} Qf3 {[%emt 0:01:27]} 25. Rg1 {[%emt 0:00:21]} (25. O-O $17) 25... Rad8 {[%emt 0:04:46]} 26. Qe2 {[%emt 0:01:07]} Qf5 {[%emt 0:01:09]} 27. Qc2 {[%emt 0:04:13]} Qe6 {[%emt 0:02:50]} 28. Ne2 {[%emt 0:01:12]} Bd6 {[%emt 0:02:31]} 29. Nd4 {[%emt 0:02:25]} Qg4 {[%emt 0:01:41]} 30. Qe2 {[%emt 0:01:13]} Qe4 {[%emt 0:02:13]} 31. Bxd6 {[%emt 0:02:37]} Rxd6 {[%emt 0:01:26]} 32. Qg4 {[%emt 0:00:37]} Qxg4 $11 {[%emt 0:04:08]} (32... Qe5 $15) 1/2-1/2

[Event "DMP-III LIGA Senior PK 2020"]
[Site "Bystre"]
[Date "2020.07.09"]
[Round "3.3"]
[White "Palacki, Rafal"]
[Black "Stefanski, Adam"]
[Result "1-0"]
[ECO "B30"]
[WhiteElo "1755"]
[BlackElo "1387"]
[Annotator "NA RC"]
[PlyCount "54"]
[EventDate "2020.07.05"]
[EventType "team-tourn"]
[EventCountry "POL"]
[SourceTitle "playchess.com"]
[Source "ChessBase"]
[SourceQuality "1"]
[TimeControl "5400+30"]

1. e4 {[%emt 0:00:00]} c5 {[%emt 0:01:13]} 2. Nf3 {[%emt 0:00:00]} Nc6 {[%emt 0:00:06]} 3. b4 {[%emt 0:01:34]} cxb4 {[%emt 0:03:43]} 4. d4 {[%emt 0:00:05]} d5 {[%emt 0:00:59]} 5. exd5 {[%emt 0:00:06]} Qxd5 {[%emt 0:00:15]} 6. c4 {[%emt 0:00:06]} Qa5 {[%emt 0:09:47]} 7. d5 {[%emt 0:01:39]} Nd8 {[%emt 0:06:51]} 8. Be3 {[%emt 0:08:14]} Nf6 {[%emt 0:15:48]} 9. Nbd2 {[%emt 0:01:55]} e6 {[%emt 0:07:05]} 10. Nb3 {[%emt 0:01:25]} Qc7 {[%emt 0:00:55]} 11. Qd4 {[%emt 0:09:02]} exd5 {[%emt 0:03:22]} 12. cxd5 {[%emt 0:08:31]} Qc3+ {[%emt 0:10:27]} 13. Qxc3 {[%emt 0:00:03]} bxc3 {[%emt 0:00:07]} 14. Bc4 {[%emt 0:00:34]} a6 {[%emt 0:08:13]} 15. a4 {[%emt 0:00:32]} Bf5 {[%emt 0:07:36]} 16. O-O {[%emt 0:09:54]} Rc8 {[%emt 0:05:14]} 17. Rfe1 {[%emt 0:04:25]} Rxc4 {[%emt 0:06:41]} 18. Bd4+ {[%emt 0:00:07]} Ne6 {[%emt 0:02:23]} 19. Na5 {[%emt 0:09:00]} Rc8 {[%emt 0:03:23]} 20. Bxf6 {[%emt 0:00:48]} gxf6 {[%emt 0:00:31]} 21. Nd4 {[%emt 0:00:32]} Bg6 {[%emt 0:01:35]} 22. Nxb7 {[%emt 0:03:39]} Bh6 {[%emt 0:03:22]} 23. dxe6 {[%emt 0:00:58]} Rc7 {[%emt 0:01:18]} 24. Nd6+ {[%emt 0:02:17]} Ke7 {[%emt 0:00:05]} 25. N6f5+ {[%emt 0:00:14]} Kd8 {[%emt 0:01:00]} 26. Nxh6 {[%emt 0:00:24]} Rc4 {[%emt 0:00:22]} 27. e7+ {[%emt 0:01:41]} Kc7 {[%emt 0:00:34]} 1-0

[Event "DMP-III LIGA Senior PK 2020"]
[Site "Bystre"]
[Date "2020.07.09"]
[Round "3.4"]
[White "Korys, Dawid"]
[Black "Zajac, Karol"]
[Result "0-1"]
[ECO "D00"]
[WhiteElo "1343"]
[BlackElo "1652"]
[Annotator "NA RC"]
[PlyCount "56"]
[EventDate "2020.07.05"]
[EventType "team-tourn"]
[EventCountry "POL"]
[SourceTitle "playchess.com"]
[Source "ChessBase"]
[SourceQuality "1"]
[TimeControl "5400+30"]

1. d4 {[%emt 0:00:54]} d5 {[%emt 0:00:00]} 2. Bf4 {[%emt 0:00:09]} Nf6 {[%emt 0:00:00]} 3. e3 {[%emt 0:00:26]} e6 {[%emt 0:00:06]} 4. Bd3 {[%emt 0:00:15]} Bd6 {[%emt 0:00:11]} 5. Bxd6 {[%emt 0:01:39]} Qxd6 {[%emt 0:00:57]} 6. Nf3 {[%emt 0:00:23]} Qb4+ {[%emt 0:01:51]} 7. Nbd2 {[%emt 0:00:52]} Qxb2 {[%emt 0:01:04]} 8. O-O {[%emt 0:00:19]} O-O {[%emt 0:01:10]} 9. Ne5 {[%emt 0:08:02]} b6 {[%emt 0:03:45]} 10. g4 {[%emt 0:07:27]} Ba6 {[%emt 0:00:50]} 11. Qe2 {[%emt 0:09:13]} Qa3 {[%emt 0:01:47]} 12. g5 {[%emt 0:08:09]} Bxd3 {[%emt 0:00:23]} 13. Qxd3 {[%emt 0:00:14]} Qxd3 {[%emt 0:00:19]} 14. Nxd3 {[%emt 0:00:20]} Ne4 {[%emt 0:00:53]} 15. Nxe4 {[%emt 0:00:22]} dxe4 {[%emt 0:00:07]} 16. Ne5 {[%emt 0:00:31]} f6 {[%emt 0:02:53]} 17. gxf6 {[%emt 0:00:07]} gxf6 {[%emt 0:00:20]} 18. Ng4 {[%emt 0:00:13]} h5 {[%emt 0:00:29]} 19. Nxf6+ {[%emt 0:07:20]} Rxf6 {[%emt 0:00:10]} 20. Kh1 {[%emt 0:00:01]} Nd7 {[%emt 0:01:08]} 21. Rg1+ {[%emt 0:00:05]} Kf7 {[%emt 0:00:35]} 22. Rg5 {[%emt 0:00:06]} Rf5 {[%emt 0:00:24]} 23. Rag1 {[%emt 0:00:16]} Rxg5 {[%emt 0:00:22]} 24. Rxg5 {[%emt 0:00:06]} Nf6 {[%emt 0:00:18]} 25. h3 {[%emt 0:00:37]} Rg8 {[%emt 0:00:17]} 26. Rxg8 {[%emt 0:00:06]} Nxg8 {[%emt 0:00:23]} 27. Kg2 {[%emt 0:00:03]} Kg6 {[%emt 0:00:26]} 28. Kg3 {[%emt 0:00:09]} Kg5 {[%emt 0:01:12]} 0-1

[Event "DMP-III LIGA Senior PK 2020"]
[Site "Bystre"]
[Date "2020.07.09"]
[Round "3.5"]
[White "Materniak, Aleksander"]
[Black "Medrygal, Rafal"]
[Result "1-0"]
[ECO "C64"]
[WhiteElo "1660"]
[BlackElo "1258"]
[Annotator "NA RC"]
[PlyCount "63"]
[EventDate "2020.07.05"]
[EventType "team-tourn"]
[EventCountry "POL"]
[SourceTitle "playchess.com"]
[Source "ChessBase"]
[SourceQuality "1"]
[TimeControl "5400+30"]

1. e4 {[%emt 0:00:00]} e5 {[%emt 0:00:34]} 2. Nf3 {[%emt 0:00:00]} Nc6 {[%emt 0:00:10]} 3. Bb5 {[%emt 0:00:03]} Bc5 {[%emt 0:00:18]} 4. O-O {[%emt 0:01:02]} d6 {[%emt 0:00:26]} 5. c3 {[%emt 0:00:38]} a6 {[%emt 0:00:17]} 6. Ba4 {[%emt 0:00:33]} b5 {[%emt 0:00:14]} 7. Bc2 {[%emt 0:00:34]} Bg4 {[%emt 0:00:18]} 8. h3 {[%emt 0:01:55]} Bh5 {[%emt 0:00:18]} 9. d3 {[%emt 0:00:42]} Nf6 {[%emt 0:02:06]} 10. Bg5 {[%emt 0:01:41]} h6 {[%emt 0:00:41]} 11. Bh4 {[%emt 0:01:17]} g5 {[%emt 0:02:05]} 12. Bg3 {[%emt 0:01:36]} Qd7 {[%emt 0:01:06]} 13. b4 {[%emt 0:02:03]} Bb6 {[%emt 0:01:06]} 14. a4 {[%emt 0:00:19]} Ne7 {[%emt 0:01:20]} 15. axb5 {[%emt 0:00:43]} Ng6 {[%emt 0:01:22]} 16. Nbd2 {[%emt 0:04:30]} Nh4 {[%emt 0:01:13]} 17. bxa6 {[%emt 0:04:06]} Rg8 {[%emt 0:01:30]} 18. Kh2 {[%emt 0:05:52]} g4 {[%emt 0:01:06]} 19. Nxh4 {[%emt 0:04:22]} gxh3 {[%emt 0:00:45]} 20. Ndf3 {[%emt 0:09:18]} hxg2 {[%emt 0:02:59]} 21. Kxg2 {[%emt 0:01:12]} Ng4 {[%emt 0:00:54]} 22. Ba4 {[%emt 0:04:12]} c6 {[%emt 0:00:20]} 23. d4 {[%emt 0:01:54]} Ke7 {[%emt 0:03:50]} 24. d5 {[%emt 0:01:34]} Bxf2 {[%emt 0:00:36]} 25. Nf5+ {[%emt 0:02:29]} Qxf5 {[%emt 0:04:42]} 26. exf5 {[%emt 0:00:25]} Bxg3 {[%emt 0:07:48]} 27. Kxg3 {[%emt 0:08:35]} Ne3+ {[%emt 0:00:58]} 28. Kf2 {[%emt 0:01:32]} Nxd1+ {[%emt 0:00:30]} 29. Rfxd1 {[%emt 0:00:24]} e4 {[%emt 0:00:37]} 30. Bxc6 {[%emt 0:07:53]} Ra7 {[%emt 0:02:25]} 31. Rg1 {[%emt 0:02:02]} Rxg1 {[%emt 0:02:01]} 32. Nxg1 {[%emt 0:00:09]} 1-0

[Event "DMP-III LIGA Senior PK 2020"]
[Site "Bystre"]
[Date "2020.07.09"]
[Round "3.6"]
[White "Trybowska, Anna"]
[Black "Tarsa, Joanna"]
[Result "1/2-1/2"]
[ECO "A84"]
[WhiteElo "1583"]
[BlackElo "1574"]
[Annotator "NA RC"]
[PlyCount "42"]
[EventDate "2020.07.05"]
[EventType "team-tourn"]
[EventCountry "POL"]
[SourceTitle "playchess.com"]
[Source "ChessBase"]
[SourceQuality "1"]
[TimeControl "5400+30"]

1. d4 {[%emt 0:00:29]} f5 {[%emt 0:00:00]} 2. c4 {[%emt 0:00:12]} e6 {[%emt 0:00:00]} 3. Nc3 {[%emt 0:00:06]} d5 {[%emt 0:00:00]} 4. cxd5 {[%emt 0:00:27]} exd5 {[%emt 0:00:00]} 5. Nf3 {[%emt 0:00:07]} Nf6 {[%emt 0:00:32]} 6. Bg5 {[%emt 0:00:23]} c6 {[%emt 0:00:11]} 7. e3 {[%emt 0:00:24]} Bd6 {[%emt 0:00:15]} 8. Ne5 {[%emt 0:01:30]} O-O {[%emt 0:01:54]} 9. Bd3 {[%emt 0:00:59]} Qe8 {[%emt 0:02:00]} 10. f4 {[%emt 0:04:57]} Ne4 {[%emt 0:02:44]} 11. Bh4 {[%emt 0:03:36]} Be6 {[%emt 0:04:05]} 12. Be2 {[%emt 0:01:19]} Bf7 {[%emt 0:06:40]} 13. g4 {[%emt 0:02:59]} Be6 {[%emt 0:16:04]} 14. g5 {[%emt 0:01:52]} Nd7 {[%emt 0:10:25]} 15. Nxe4 {[%emt 0:05:38]} dxe4 {[%emt 0:03:09]} 16. Nxd7 {[%emt 0:02:00]} Qxd7 {[%emt 0:00:27]} 17. Rg1 {[%emt 0:00:51]} Be7 {[%emt 0:05:03]} 18. Qc2 {[%emt 0:02:48]} Rac8 {[%emt 0:04:50]} 19. Bc4 {[%emt 0:01:34]} Bxc4 {[%emt 0:01:01]} 20. Qxc4+ {[%emt 0:00:06]} Qd5 {[%emt 0:00:07]} 21. Rc1 {[%emt 0:01:44]} Kh8 {[%emt 0:01:31]} 1/2-1/2

[Event "DMP-III LIGA Senior PK 2020"]
[Site "Bystre"]
[Date "2020.07.09"]
[Round "3.10"]
[White "Karas, Kacper"]
[Black "Wojciechowski, Beniamin"]
[Result "1/2-1/2"]
[ECO "A11"]
[WhiteElo "1150"]
[BlackElo "1835"]
[Annotator "NA RC"]
[PlyCount "47"]
[EventDate "2020.07.05"]
[EventType "team-tourn"]
[EventCountry "POL"]
[SourceTitle "playchess.com"]
[Source "ChessBase"]
[SourceQuality "1"]
[TimeControl "5400+30"]

{[%evp 8,45,20,32767,32767,32767,32767,32767,32767,32767,32767,32767,32767,32767,32767,32767,32767,32767,32767,32767,32767,-145,-7,-16,150,78,87,81,67,32767,78,75,45,35,129,114,118,100,107,35]} 1. c4 {[%emt 0:00:00]} c6 {[%emt 0:00:01]} 2. g3 {[%emt 0:00:29]} d5 {[%emt 0:00:22]} 3. d4 {[%emt 0:00:28]} Nf6 {[%emt 0:00:07]} 4. Bg2 {[%emt 0:00:51]} e6 {[%emt 0:00:52]} 5. Nc3 {[%emt 0:01:47]} Nbd7 {[%emt 0:01:23]} 6. b3 {[%emt 0:02:25] [#] E01: Catalan: Early deviations.} dxc4 $146 {[%emt 0:07:04]} ({Predecessor:} 6... Be7 7. e3 O-O 8. Nge2 Re8 9. O-O dxc4 10. bxc4 Nb6 11. Qb3 Bf8 12. a4 Qc7 13. a5 Nbd7 14. Ba3 Bxa3 15. Rxa3 e5 16. d5 {1-0 (40) Alves da Silva,T (2055)-Da Silva,J (1615) Teresina 2019}) 7. bxc4 {[%emt 0:03:01]} Bb4 {[%emt 0:45:07]} 8. Qb3 {[%emt 0:18:12]} Qa5 {[%emt 0:07:24]} 9. Bb2 {[%emt 0:01:14]} e5 {[%emt 0:01:41]} 10. a3 {[%emt 0:03:58]} Be7 {[%emt 0:01:49]} 11. e3 {[%emt 0:02:07]} exd4 {[%emt 0:00:32]} 12. exd4 {[%emt 0:00:14]} Nb6 {[%emt 0:01:51]} 13. Nf3 {[%emt 0:05:48]} Be6 {[%emt 0:02:29]} 14. Ne5 {[%emt 0:02:18] [#]} (14. d5 $15 cxd5 15. cxd5 Bxd5 16. Qb5+ Qxb5 17. Nxb5) 14... O-O-O {[%emt 0:21:02]} (14... Nfd7 $1 $17 {[%cal Rd7e5]} 15. d5 Nxe5 16. dxe6 Nd3+ 17. Kf1 O-O) 15. O-O {[%emt 0:21:00]} Nfd7 {[%emt 0:01:34] [#]} (15... Bd6 $11) 16. Nxd7 {[%emt 0:07:11]} (16. Nxc6 $142 $1 bxc6 17. d5) 16... Rxd7 {[%emt 0:00:06]} 17. d5 $1 {[%emt 0:00:18]} cxd5 {[%emt 0:00:28]} 18. cxd5 {[%emt 0:00:46]} Nxd5 {[%emt 0:01:02]} 19. Nxd5 {[%emt 0:00:59]} Bxd5 {[%emt 0:00:21]} 20. Bxd5 {[%emt 0:00:23]} Rxd5 {[%emt 0:00:33]} ({Black should play} 20... Qxd5 $14 21. Qc3+ Kb8) 21. Bxg7 {[%emt 0:01:12]} Rhd8 {[%emt 0:01:58]} 22. Rfc1+ {[%emt 0:02:06]} Kb8 {[%emt 0:01:20] [#]} 23. Bc3 $14 {[%emt 0:01:55]} (23. Bh6 $1 $16) 23... Qb5 {[%emt 0:01:37]} 24. Qa2 1/2-1/2

[Event "DMP-III LIGA Senior PK 2020"]
[Site "Bystre"]
[Date "2020.07.09"]
[Round "3.11"]
[White "Borukalo, Zdzislaw"]
[Black "Mastej, Krzysztof"]
[Result "1/2-1/2"]
[ECO "C55"]
[WhiteElo "1679"]
[BlackElo "1303"]
[Annotator "NA RC"]
[PlyCount "51"]
[EventDate "2020.07.05"]
[EventType "team-tourn"]
[EventCountry "POL"]
[SourceTitle "playchess.com"]
[Source "ChessBase"]
[SourceQuality "1"]
[TimeControl "5400+30"]

1. e4 {[%emt 0:00:00]} e5 {[%emt 0:00:00]} 2. Nf3 {[%emt 0:00:00]} Nc6 {[%emt 0:00:06]} 3. d4 {[%emt 0:00:00]} exd4 {[%emt 0:00:26]} 4. Bc4 {[%emt 0:00:00]} Nf6 {[%emt 0:00:28]} 5. e5 {[%emt 0:00:36]} d5 {[%emt 0:00:42]} 6. Bb5 {[%emt 0:00:16]} Ne4 {[%emt 0:01:05]} 7. Nxd4 {[%emt 0:00:16]} Bc5 {[%emt 0:00:46]} 8. Be3 {[%emt 0:06:11]} Bd7 {[%emt 0:03:00]} 9. Bxc6 {[%emt 0:02:09]} bxc6 {[%emt 0:01:05]} 10. Nd2 {[%emt 0:03:54]} Qe7 {[%emt 0:04:59]} 11. N2f3 {[%emt 0:06:54]} O-O {[%emt 0:04:15]} 12. c3 {[%emt 0:05:57]} Rab8 {[%emt 0:05:13]} 13. Qe2 {[%emt 0:08:41]} Rfe8 {[%emt 0:04:34]} 14. h3 {[%emt 0:06:46]} a5 {[%emt 0:04:34]} 15. O-O {[%emt 0:04:56]} h6 {[%emt 0:05:27]} 16. Bf4 {[%emt 0:09:18]} Ba7 {[%emt 0:05:07]} 17. e6 {[%emt 0:08:03]} fxe6 {[%emt 0:02:55]} 18. Bxc7 {[%emt 0:01:28]} Rb7 {[%emt 0:04:01]} 19. Bxa5 {[%emt 0:00:26]} Reb8 {[%emt 0:01:26]} 20. Bb4 {[%emt 0:08:15]} Qf6 {[%emt 0:02:17]} 21. Ba3 {[%emt 0:08:39]} e5 {[%emt 0:06:32]} 22. Nc2 {[%emt 0:04:53]} Ng3 23. Qxe5 {[%emt 0:01:15]} Qxe5 {[%emt 0:05:38]} 24. Nxe5 {[%emt 0:00:14]} Nxf1 {[%emt 0:00:13]} 25. Nxd7 {[%emt 0:00:51]} Rxd7 {[%emt 0:00:25]} 26. Kxf1 {[%emt 0:00:20]} 1/2-1/2